bitfinex-derivatives/quotes_BNBF0:USTF0_20250630
["timestamp","ask_amount","ask_price","bid_price","bid_amount"]
[1751316022317,0.26357347,660.79,659.89,1.14321715]
[1751316022616,0.26357347,660.79,659.9,1.14321715]
[1751316022819,0.26357347,660.79,659.91,1.14321715]
[1751316023017,0.26357347,660.79,659.92,1.14321715]
[1751316023216,3.78032769,660.87,659.93,1.14321715]
[1751316023521,0.26360541,660.58,659.94,1.14321715]
[1751316023722,0.26360541,660.58,659.95,1.14321715]
[1751316023921,0.26360541,660.58,659.73,1.1292313]
[1751316024218,0.26360541,660.58,659.74,1.14320967]
[1751316024423,0.26360541,660.58,659.75,1.14320967]
[1751316024618,0.26360541,660.58,659.76,1.14320967]
[1751316024819,0.26360541,660.58,659.77,1.14320967]
[1751316025117,0.26360541,660.58,659.78,1.14320967]
[1751316025322,0.26360541,660.58,659.79,1.14320967]
[1751316025523,0.26360541,660.58,659.8,1.14320967]
[1751316025724,0.26360541,660.58,659.81,1.14320967]
[1751316025924,0.26360541,660.58,659.82,1.14320967]
[1751316026224,0.26360541,660.58,659.83,1.14320967]
[1751316026424,0.26360541,660.58,659.84,1.14320967]
[1751316026624,0.26360541,660.58,659.85,1.14320967]
[1751316026825,0.26360541,660.58,659.86,1.14320967]
[1751316027121,0.26360541,660.58,659.87,1.14320967]
[1751316027422,0.26360541,660.58,659.88,1.14320967]
[1751316027625,0.26360541,660.58,659.89,1.14320967]
[1751316027922,0.26360541,660.58,659.9,1.14320967]
[1751316028124,0.26360541,660.58,659.91,1.14320967]
[1751316028321,0.26360541,660.58,659.92,1.14320967]
[1751316028525,0.26360541,660.58,659.93,1.14320967]
[1751316028721,0.26360541,660.58,659.94,1.14320967]
[1751316028921,0.26360541,660.58,659.95,1.14320967]
[1751316029122,0.26360541,660.58,659.96,1.14320967]
[1751316029426,0.26360541,660.58,659.97,1.14320967]
[1751316029626,0.26360541,660.58,659.83,1.996]
[1751316029826,0.26360541,660.58,659.84,1.14315815]
[1751316030028,0.26360541,660.58,659.85,1.14315815]
[1751316030222,0.26360541,660.58,659.86,1.14315815]
[1751316030426,0.26360541,660.58,659.87,1.14315815]
[1751316030623,0.26360541,660.58,659.88,1.14315815]
[1751316030826,0.26360541,660.58,659.89,1.14315815]
[1751316031022,0.26360541,660.58,659.83,1.996]
[1751316031023,0.26360541,660.58,659.9,1.14315815]
[1751316031227,0.26360541,660.58,659.91,1.14315815]
[1751316031529,0.26360541,660.58,659.92,1.14315815]
[1751316031725,0.26360541,660.58,659.93,1.14315815]
[1751316031924,0.26360541,660.58,659.94,1.14315815]
[1751316032125,0.26360541,660.58,659.95,1.14315815]
[1751316032331,0.26360541,660.58,659.96,1.14315815]
[1751316032531,0.26360541,660.58,659.97,1.14315815]
[1751316032732,0.26360541,660.58,659.98,1.14315815]
[1751316033029,0.26360541,660.58,659.99,1.14315815]
[1751316033227,0.26360541,660.58,659.83,1.996]
[1751316033430,0.26360541,660.58,659.84,1.1436246]
[1751316033628,0.26360541,660.58,659.85,1.1436246]
[1751316033828,0.26360541,660.58,659.86,1.1436246]
[1751316034033,0.26360541,660.58,659.87,1.1436246]
[1751316034234,0.26360541,660.58,659.88,1.1436246]
[1751316034432,0.26360541,660.58,659.89,1.1436246]
[1751316034631,0.26360541,660.58,659.9,1.1436246]
[1751316034835,0.26360541,660.58,659.91,1.1436246]
[1751316035036,0.26360541,660.58,659.92,1.1436246]
[1751316035233,0.26360541,660.58,659.93,1.1436246]
[1751316035536,0.26360541,660.58,659.94,1.1436246]
[1751316035732,0.26360541,660.58,659.95,1.1436246]
[1751316035937,0.26360541,660.58,659.96,1.1436246]
[1751316036233,0.26360541,660.58,659.97,1.1436246]
[1751316036436,0.26360541,660.58,659.98,1.1436246]
[1751316036630,0.26360541,660.58,659.99,1.1436246]
[1751316036834,0.26360541,660.58,659.83,1.996]
[1751316037033,0.26360541,660.58,659.84,1.14358332]
[1751316037336,0.26360541,660.58,659.85,1.14358332]
[1751316037632,0.26360541,660.58,659.86,1.14358332]
[1751316037836,0.26360541,660.58,659.87,1.14358332]
[1751316038133,0.26360541,660.58,659.88,1.14358332]
[1751316038433,0.26360541,660.58,659.89,1.14358332]
[1751316038636,0.26360541,660.58,659.9,1.14358332]
[1751316038936,0.26360541,660.58,659.91,1.14358332]
[1751316039136,0.26360541,660.58,659.92,1.14358332]
[1751316039336,0.26360541,660.58,659.93,1.14358332]
[1751316039535,0.26360541,660.58,659.94,1.14358332]
[1751316039736,0.26360541,660.58,659.95,1.14358332]
[1751316039934,0.26360541,660.58,659.96,1.14358332]
[1751316040137,0.26360541,660.58,659.97,1.14358332]
[1751316040333,0.26360541,660.58,659.98,1.14358332]
[1751316040635,0.26360541,660.58,659.99,1.14358332]
[1751316040838,0.26360541,660.58,659.83,1.996]
[1751316041039,0.26360541,660.58,659.84,1.14346906]
[1751316041239,0.26360541,660.58,659.85,1.14346906]
[1751316041535,0.26360541,660.58,659.86,1.14346906]
[1751316041736,0.26360541,660.58,659.87,1.14346906]
[1751316041937,0.26360541,660.58,659.88,1.14346906]
[1751316042140,0.26360541,660.58,659.89,1.14346906]
[1751316042440,0.26360541,660.58,659.9,1.14346906]
[1751316042739,0.26360541,660.58,659.91,1.14346906]
[1751316042940,0.26360541,660.58,659.92,1.14346906]
[1751316043137,0.26360541,660.58,659.93,1.14346906]
[1751316043335,0.26360541,660.58,659.94,1.14346906]
[1751316043536,0.26360541,660.58,659.95,1.14346906]
[1751316043739,0.26360541,660.58,659.96,1.14346906]
[1751316043941,0.26360541,660.58,659.97,1.14346906]
[1751316044137,0.26360541,660.58,659.98,1.14346906]
[1751316044342,0.26360541,660.58,659.99,1.14346906]
[1751316044641,0.26360541,660.58,659.83,1.996]
[1751316044841,0.26360541,660.58,659.84,1.14343927]
[1751316045041,0.26360541,660.58,659.85,1.14343927]
[1751316045239,0.26360541,660.58,659.86,1.14343927]
[1751316045443,0.26360541,660.58,659.87,1.14343927]
[1751316045737,0.26360541,660.58,659.88,1.14343927]
[1751316045937,0.26360541,660.58,659.89,1.14343927]
[1751316046137,0.26360541,660.58,659.9,1.14343927]
[1751316046340,0.26360541,660.58,659.91,1.14343927]
[1751316046540,0.26360541,660.58,659.92,1.14343927]
[1751316046743,0.26360541,660.58,659.93,1.14343927]
[1751316046940,0.26360541,660.58,659.94,1.14343927]
[1751316047140,0.26360541,660.58,659.95,1.14343927]
[1751316047344,0.26360541,660.58,659.96,1.14343927]
[1751316047545,0.26360541,660.58,659.97,1.14343927]
[1751316047744,0.26360541,660.58,659.83,1.996]
[1751316047745,0.26360541,660.58,659.98,1.14343927]
[1751316048041,0.26360541,660.58,659.99,1.14343927]
[1751316048238,0.26360541,660.58,659.83,1.996]
[1751316048441,0.26360541,660.58,659.84,1.14337472]
[1751316048643,0.26360541,660.58,659.85,1.14337472]
[1751316048939,0.26360541,660.58,659.86,1.14337472]
[1751316049143,0.26360541,660.58,659.87,1.14337472]
[1751316049341,0.26360541,660.58,659.88,1.14337472]
[1751316049541,0.26360541,660.58,659.89,1.14337472]
[1751316049744,0.26360541,660.58,659.9,1.14337472]
[1751316049940,0.26360541,660.58,659.91,1.14337472]
[1751316050144,0.26360541,660.58,659.92,1.14337472]
[1751316050346,0.26360541,660.58,659.93,1.14337472]
[1751316050649,0.26360541,660.58,659.94,1.14337472]
[1751316050942,0.26360541,660.58,659.95,1.14337472]
[1751316051244,0.26360541,660.58,659.96,1.14337472]
[1751316051441,0.26360541,660.58,659.97,1.14337472]
[1751316051641,0.26360541,660.58,659.98,1.14337472]
[1751316051842,0.26360541,660.58,659.83,1.996]
[1751316052043,0.26360541,660.58,659.84,1.14255741]
[1751316052346,0.26360541,660.58,659.85,1.14255741]
[1751316052547,0.26360541,660.58,659.86,1.14255741]
[1751316052747,0.26360541,660.58,659.87,1.14255741]
[1751316052941,0.26360541,660.58,659.88,1.14255741]
[1751316053145,0.26360541,660.58,659.89,1.14255741]
[1751316053345,0.26360541,660.58,659.9,1.14255741]
[1751316053548,0.26360541,660.58,659.91,1.14255741]
[1751316053744,0.26360541,660.58,659.83,1.996]
[1751316053745,0.26360541,660.58,659.92,1.14255741]
[1751316053944,0.26360541,660.58,659.93,1.14255741]
[1751316054148,0.26360541,660.58,659.94,1.14255741]
[1751316054344,0.26360541,660.58,659.95,1.14255741]
[1751316054545,0.26360541,660.58,659.83,1.996]
[1751316054843,0.26360541,660.58,659.84,1.14298431]
[1751316055048,0.26360541,660.58,659.85,1.14298431]
[1751316055245,0.26360541,660.58,659.83,1.996]
[1751316055246,0.26360541,660.58,659.86,1.14298431]
[1751316055448,0.26360541,660.58,659.87,1.14298431]
[1751316055648,0.26360541,660.58,659.88,1.14298431]
[1751316055847,0.26360541,660.58,659.89,1.14298431]
[1751316056044,0.26360541,660.58,659.9,1.14298431]
[1751316056247,0.26360541,660.58,659.91,1.14298431]
[1751316056447,0.26360541,660.58,659.92,1.14298431]
[1751316056645,0.26360541,660.58,659.83,1.996]
[1751316056849,0.26360541,660.58,659.84,1.14253213]
[1751316057148,0.26360541,660.58,659.85,1.14253213]
[1751316057347,0.26360541,660.58,659.86,1.14253213]
[1751316057548,0.26360541,660.58,659.87,1.14253213]
[1751316057749,0.26360541,660.58,659.88,1.14253213]
[1751316058050,0.26360541,660.58,659.89,1.14253213]
[1751316058248,0.26360541,660.58,659.9,1.14253213]
[1751316058448,0.26360541,660.58,659.91,1.14253213]
[1751316058744,0.26360541,660.58,659.92,1.14253213]
[1751316058948,0.26360541,660.58,659.83,1.996]
[1751316059149,0.26360541,660.58,659.84,1.14236029]
[1751316059345,0.26360541,660.58,659.85,1.14236029]
[1751316059545,0.26360541,660.58,659.86,1.14236029]
[1751316059750,0.26360541,660.58,659.87,1.14236029]
[1751316060050,0.26360541,660.58,659.88,1.14236029]
[1751316060251,0.26360541,660.58,659.83,1.996]
[1751316060451,0.26360541,660.58,659.84,1.14229081]
[1751316060645,0.26360541,660.58,659.83,1.996]
[1751316060646,0.26360541,660.58,659.85,1.14229081]
[1751316060845,0.26360541,660.58,659.86,1.14229081]
[1751316061050,0.26360541,660.58,659.87,1.14229081]
[1751316061250,0.26360541,660.58,659.83,1.996]
[1751316061251,0.26360541,660.58,659.88,1.14229081]
[1751316061449,0.26360541,660.58,659.83,1.996]
[1751316061647,0.26360541,660.58,659.84,1.14222859]
[1751316061852,0.26360541,660.58,659.85,1.14222859]
[1751316062048,0.26360541,660.58,659.86,1.14222859]
[1751316062250,0.26360541,660.58,659.87,1.14222859]
[1751316062449,0.26360541,660.58,659.88,1.14222859]
[1751316062655,0.26360541,660.58,659.83,1.996]
[1751316062849,0.26360541,660.58,659.84,1.14216941]
[1751316063053,0.26360541,660.58,659.85,1.14216941]
[1751316063353,0.26360541,660.58,659.86,1.14216941]
[1751316063552,0.26360541,660.58,659.87,1.14216941]
[1751316063749,0.26360541,660.58,659.88,1.14216941]
[1751316063949,0.26360541,660.58,659.83,1.996]
[1751316064249,0.26360541,660.58,659.84,1.14211877]
[1751316064452,0.26360541,660.58,659.85,1.14211877]
[1751316064652,0.26360541,660.58,659.86,1.14211877]
[1751316064854,0.26360541,660.58,659.87,1.14211877]
[1751316065153,0.26360541,660.58,659.83,1.996]
[1751316065453,0.26360541,660.58,659.84,1.14202905]
[1751316065748,0.26360541,660.58,659.85,1.14202905]
[1751316065953,0.26360541,660.58,659.86,1.14202905]
[1751316066152,0.26360541,660.58,659.87,1.14202905]
[1751316066349,0.26360541,660.58,659.83,1.996]
[1751316066548,0.26360541,660.58,659.84,1.14202448]
[1751316066852,0.26360541,660.58,659.85,1.14202448]
[1751316067153,0.26360541,660.58,659.86,1.14202448]
[1751316067452,0.26360541,660.58,659.87,1.14202448]
[1751316067653,0.26360541,660.58,659.87,2.673]
[1751316069356,0.26360541,660.58,659.88,1.1419223]
[1751316069654,0.26360541,660.58,659.89,1.1419223]
[1751316069852,0.26360541,660.58,659.9,1.1419223]
[1751316070051,0.26360541,660.58,659.87,2.673]
[1751316070252,0.26360541,660.58,659.88,1.14189308]
[1751316070456,0.26360541,660.58,659.89,1.14189308]
[1751316070656,0.26360541,660.58,659.9,1.14189308]
[1751316070855,0.26360541,660.58,659.87,2.673]
[1751316071058,0.26360541,660.58,659.88,1.14189308]
[1751316071357,0.26360541,660.58,659.89,1.14189308]
[1751316071559,0.26360541,660.58,659.9,1.14189308]
[1751316071856,0.26360541,660.58,659.87,2.673]
[1751316072163,0.26360541,660.58,659.88,1.14186569]
[1751316072356,0.26360541,660.58,659.89,1.14186569]
[1751316072557,0.26360541,660.58,659.9,1.14186569]
[1751316072757,0.26360541,660.58,659.87,2.673]
[1751316072954,0.26360541,660.58,659.88,1.14184036]
[1751316073159,0.26360541,660.58,659.89,1.14184036]
[1751316073356,0.26360541,660.58,659.9,1.14184036]
[1751316073561,0.26360541,660.58,659.87,2.673]
[1751316073862,0.26360541,660.58,659.88,1.14181691]
[1751316074061,0.26360541,660.58,659.89,1.14181691]
[1751316074261,0.26360541,660.58,659.9,1.14181691]
[1751316074458,0.26360541,660.58,659.87,2.673]
[1751316074662,0.26360541,660.58,659.88,1.14179544]
[1751316074860,0.26360541,660.58,659.89,1.14179544]
[1751316075064,0.26360541,660.58,659.9,1.14179544]
[1751316075363,0.26360541,660.58,659.87,2.673]
[1751316075564,0.26360541,660.58,659.88,1.14177473]
[1751316075763,0.26360541,660.58,659.89,1.14177473]
[1751316076063,0.26360541,660.58,659.9,1.14177473]
[1751316076259,0.26360541,660.58,659.87,2.673]
[1751316076466,0.26360541,660.58,659.88,1.1417562]
[1751316076665,0.26360541,660.58,659.89,1.1417562]
[1751316076865,0.26360541,660.58,659.9,1.1417562]
[1751316077066,0.26360541,660.58,659.87,2.673]
[1751316077264,0.26360541,660.58,659.88,1.14173532]
[1751316077461,0.26360541,660.58,659.89,1.14173532]
[1751316077664,0.26360541,660.58,659.9,1.14173532]
[1751316077863,0.26360541,660.58,659.87,2.673]
[1751316078061,0.26360541,660.58,659.88,1.1417351]
[1751316078366,0.26360541,660.58,659.89,1.1417351]
[1751316078666,0.26360541,660.58,659.87,2.673]
[1751316078862,0.26360541,660.58,659.88,1.14174648]
[1751316079064,0.26360541,660.58,659.89,1.14174648]
[1751316079262,0.26360541,660.58,659.87,2.673]
[1751316079467,0.26360541,660.58,659.88,1.14207679]
[1751316079766,0.26360541,660.58,659.89,1.14207679]
[1751316079961,0.26360541,660.58,659.87,2.673]
[1751316080165,0.26360541,660.58,659.88,1.14243753]
[1751316080462,0.26360541,660.58,659.89,1.14243753]
[1751316080665,0.26360541,660.58,659.87,2.673]
[1751316094575,0.26360541,660.58,659.83,1.996]
[1751316097080,0.26360541,660.58,659.84,2.733]
[1751316109193,0.26360541,660.58,659.85,1.14280438]
[1751316109392,0.26360541,660.58,659.84,2.733]
[1751316109597,0.26360541,660.58,659.85,1.14236994]
[1751316109795,0.26360541,660.58,659.84,2.733]
[1751316110094,0.26360541,660.58,659.85,1.14236998]
[1751316110296,0.26360541,660.58,659.84,2.733]
[1751316110497,0.26360541,660.58,659.85,1.14245007]
[1751316110800,0.26360541,660.58,659.84,2.733]
[1751316111096,0.26360541,660.58,659.85,1.14223657]
[1751316111297,0.26360541,660.58,659.84,2.733]
[1751316111599,0.26360541,660.58,659.85,1.14209968]
[1751316111799,0.26360541,660.58,659.84,2.733]
[1751316111997,0.26360541,660.58,659.85,1.14209973]
[1751316112196,0.26360541,660.58,659.86,1.14215145]
[1751316112398,0.26360541,660.58,659.84,2.733]
[1751316112597,0.26360541,660.58,659.85,1.14215197]
[1751316112896,0.26360541,660.58,659.86,1.14215197]
[1751316113099,0.26360541,660.58,659.84,2.733]
[1751316113301,0.26360541,660.58,659.85,1.14224243]
[1751316113499,0.26360541,660.58,659.86,1.14224243]
[1751316113700,0.26360541,660.58,659.84,2.733]
[1751316113998,0.26360541,660.58,659.85,1.14224259]
[1751316114197,0.26360541,660.58,659.86,1.14224259]
[1751316114397,0.26360541,660.58,659.84,2.733]
[1751316114695,0.26360541,660.58,659.85,1.14234636]
[1751316114895,0.26360541,660.58,659.86,1.14234636]
[1751316115199,0.26360541,660.58,659.84,2.733]
[1751316115397,0.26360541,660.58,659.85,1.14235238]
[1751316115597,0.26360541,660.58,659.84,2.733]
[1751316115598,0.26360541,660.58,659.86,1.14235238]
[1751316115796,0.26360541,660.58,659.84,2.733]
[1751316116000,0.26360541,660.58,659.85,1.14235238]
[1751316116200,0.26360541,660.58,659.86,1.14235238]
[1751316116397,0.26360541,660.58,659.84,2.733]
[1751316116596,0.26360541,660.58,659.85,1.14235948]
[1751316116801,0.26360541,660.58,659.86,1.14235948]
[1751316116999,0.26360541,660.58,659.84,2.733]
[1751316117200,0.26360541,660.58,659.85,1.14235948]
[1751316117403,0.26360541,660.58,659.86,1.14235948]
[1751316117603,0.26360541,660.58,659.84,2.733]
[1751316117899,0.26360541,660.58,659.85,1.14236832]
[1751316118099,0.26360541,660.58,659.86,1.14236832]
[1751316118303,0.26360541,660.58,659.84,2.733]
[1751316118500,0.26360541,660.58,659.85,1.14238461]
[1751316118799,0.26360541,660.58,659.86,1.14238461]
[1751316119004,0.26360541,660.58,659.84,2.733]
[1751316119303,0.26360541,660.58,659.85,1.14241936]
[1751316119505,0.26360541,660.58,659.86,1.14241936]
[1751316119701,0.26360541,660.58,659.84,2.733]
[1751316119900,0.26360541,660.58,659.85,1.1424301]
[1751316120099,0.26360541,660.58,659.86,1.1424301]
[1751316120304,0.26360541,660.58,659.84,2.733]
[1751316120505,0.26360541,660.58,659.85,1.14242678]
[1751316120805,0.26360541,660.58,659.86,1.14242678]
[1751316121101,0.26360541,660.58,659.84,2.733]
[1751316121306,0.26360541,660.58,659.85,1.14265816]
[1751316121503,0.26360541,660.58,659.86,1.14265816]
[1751316121708,0.26360541,660.58,659.84,2.733]
[1751316121904,0.26360541,660.58,659.85,1.14269576]
[1751316122104,0.26360541,660.58,659.86,1.14269576]
[1751316122302,0.26360541,660.58,659.87,1.14269576]
[1751316122608,0.26360541,660.58,659.84,2.733]
[1751316122809,0.26360541,660.58,659.85,1.14270931]
[1751316123104,0.26360541,660.58,659.86,1.14270931]
[1751316123305,0.26360541,660.58,659.87,1.14270931]
[1751316123504,0.26360541,660.58,659.84,2.733]
[1751316123709,0.26360541,660.58,659.85,1.14272235]
[1751316123907,0.26360541,660.58,659.86,1.14272235]
[1751316124109,0.26360541,660.58,659.87,1.14272235]
[1751316124404,0.26360541,660.58,659.84,2.733]
[1751316124607,0.26360541,660.58,659.85,1.14274762]
[1751316124811,0.26360541,660.58,659.86,1.14274762]
[1751316125005,0.26360541,660.58,659.87,1.14274762]
[1751316125308,0.26360541,660.58,659.84,2.733]
[1751316125509,0.26360541,660.58,659.85,1.14276633]
[1751316125806,0.26360541,660.58,659.86,1.14276633]
[1751316126009,0.26360541,660.58,659.87,1.14276633]
[1751316126306,0.26360541,660.58,659.84,2.733]
[1751316126606,0.26360541,660.58,659.85,1.14276741]
[1751316126806,0.26360541,660.58,659.86,1.14276741]
[1751316127012,0.26360541,660.58,659.87,1.14276741]
[1751316127212,0.26360541,660.58,659.84,2.733]
[1751316127410,0.26360541,660.58,659.85,1.1427635]
[1751316127612,0.26360541,660.58,659.86,1.1427635]
[1751316127911,0.26360541,660.58,659.87,1.1427635]
[1751316128211,0.26360541,660.58,659.84,2.733]
[1751316128406,0.26360541,660.58,659.85,1.1427617]
[1751316128609,0.26360541,660.58,659.86,1.1427617]
[1751316128807,0.26360541,660.58,659.87,1.1427617]
[1751316129013,0.26360541,660.58,659.84,2.733]
[1751316129312,0.26360541,660.58,659.85,1.14253424]
[1751316129511,0.26360541,660.58,659.86,1.14253424]
[1751316129811,0.26360541,660.58,659.87,1.14253424]
[1751316130108,0.26360541,660.58,659.84,2.733]
[1751316130312,0.26360541,660.58,659.85,1.14256824]
[1751316130512,0.26360541,660.58,659.86,1.14256824]
[1751316130709,0.26360541,660.58,659.87,1.14256824]
[1751316130909,0.26360541,660.58,659.84,2.733]
[1751316131112,0.26360541,660.58,659.85,1.14256824]
[1751316131315,0.26360541,660.58,659.86,1.14256824]
[1751316131513,0.26360541,660.58,659.87,1.14256824]
[1751316131718,0.26360541,660.58,659.84,2.733]
[1751316131916,0.26360541,660.58,659.85,1.14259859]
[1751316132116,0.26360541,660.58,659.86,1.14259859]
[1751316132318,0.26360541,660.58,659.87,1.14259859]
[1751316132519,0.26360541,660.58,659.84,2.733]
[1751316132716,0.26360541,660.58,659.85,1.14263169]
[1751316132916,0.26360541,660.58,659.86,1.14263169]
[1751316133118,0.26360541,660.58,659.87,1.14263169]
[1751316133317,0.26360541,660.58,659.88,1.14266786]
[1751316133521,0.26360541,660.58,659.84,2.733]
[1751316133722,0.26360541,660.58,659.85,1.14266906]
[1751316133922,0.26360541,660.58,659.86,1.14266906]
[1751316134127,0.26360541,660.58,659.87,1.14266906]
[1751316134423,0.26360541,660.58,659.88,1.14266906]
[1751316134626,0.26360541,660.58,659.84,2.733]
[1751316134826,0.26360541,660.58,659.85,1.14270933]
[1751316135028,0.26360541,660.58,659.86,1.14270933]
[1751316135225,0.26360541,660.58,659.87,1.14270933]
[1751316135432,0.26360541,660.58,659.88,1.14270933]
[1751316135627,0.26360541,660.58,659.84,2.733]
[1751316135826,0.26360541,660.58,659.85,1.14298284]
[1751316136029,0.26360541,660.58,659.86,1.14298284]
[1751316136327,0.26360541,660.58,659.84,2.733]
[1751316136328,0.26360541,660.58,659.87,1.14298284]
[1751316136527,0.26360541,660.58,659.88,1.14298284]
[1751316136730,0.26360541,660.58,659.84,2.733]
[1751316136928,0.26360541,660.58,659.85,1.1430308]
[1751316137128,0.26360541,660.58,659.86,1.1430308]
[1751316137332,0.26360541,660.58,659.87,1.1430308]
[1751316137527,0.26360541,660.58,659.88,1.1430308]
[1751316137727,0.26360541,660.58,659.84,2.733]
[1751316138028,0.26360541,660.58,659.85,1.14308702]
[1751316138229,0.26360541,660.58,659.86,1.14308702]
[1751316138432,0.26360541,660.58,659.87,1.14308702]
[1751316138730,0.26360541,660.58,659.88,1.14308702]
[1751316138928,0.26360541,660.58,659.89,1.14308702]
[1751316139129,0.26360541,660.58,659.84,2.733]
[1751316139331,0.26360541,660.58,659.85,1.14328146]
[1751316139532,0.26360541,660.58,659.86,1.14328146]
[1751316139731,0.26360541,660.58,659.87,1.14328146]
[1751316139935,0.26360541,660.58,659.88,1.14328146]
[1751316140142,0.26360541,660.58,659.89,1.14328146]
[1751316140336,0.26360541,660.58,659.84,2.733]
[1751316140634,0.26360541,660.58,659.85,1.14319966]
[1751316140834,0.26360541,660.58,659.86,1.14319966]
[1751316141035,0.26360541,660.58,659.87,1.14319966]
[1751316141339,0.26360541,660.58,659.88,1.14319966]
[1751316141537,0.26360541,660.58,659.89,1.14319966]
[1751316141740,0.26360541,660.58,659.84,2.733]
[1751316141936,0.26360541,660.58,659.85,1.14321174]
[1751316142239,0.26360541,660.58,659.86,1.14321174]
[1751316142439,0.26360541,660.58,659.87,1.14321174]
[1751316142635,0.26360541,660.58,659.84,2.733]
[1751316142636,0.26360541,660.58,659.88,1.14321174]
[1751316142840,0.26360541,660.58,659.89,1.14321174]
[1751316143135,0.26360541,660.58,659.84,2.733]
[1751316143437,0.26360541,660.58,659.85,1.14324345]
[1751316143639,0.26360541,660.58,659.86,1.14324345]
[1751316143838,0.26360541,660.58,659.87,1.14324345]
[1751316144035,0.26360541,660.58,659.88,1.14324345]
[1751316144235,0.26360541,660.58,659.89,1.14324345]
[1751316144436,0.26360541,660.58,659.84,2.733]
[1751316144634,0.26360541,660.58,659.85,1.14336183]
[1751316144836,0.26360541,660.58,659.86,1.14336183]
[1751316145036,0.26360541,660.58,659.87,1.14336183]
[1751316145241,0.26360541,660.58,659.88,1.14336183]
[1751316145442,0.26360541,660.58,659.89,1.14336183]
[1751316145636,0.26360541,660.58,659.84,2.733]
[1751316145840,0.26360541,660.58,659.85,1.1433762]
[1751316146038,0.26360541,660.58,659.86,1.1433762]
[1751316146238,0.26360541,660.58,659.87,1.1433762]
[1751316146538,0.26360541,660.58,659.88,1.1433762]
[1751316146741,0.26360541,660.58,659.89,1.1433762]
[1751316146943,0.26360541,660.58,659.84,2.733]
[1751316147143,0.26360541,660.58,659.85,1.14338056]
[1751316147439,0.26360541,660.58,659.86,1.14338056]
[1751316147642,0.26360541,660.58,659.87,1.14338056]
[1751316147938,0.26360541,660.58,659.88,1.14338056]
[1751316148142,0.26360541,660.58,659.89,1.14338056]
[1751316148342,0.26360541,660.58,659.84,2.733]
[1751316148545,0.26360541,660.58,659.85,1.14341458]
[1751316148745,0.26360541,660.58,659.86,1.14341458]
[1751316148944,0.26360541,660.58,659.87,1.14341458]
[1751316149241,0.26360541,660.58,659.84,2.733]
[1751316149440,0.26360541,660.58,659.85,1.14343505]
[1751316149640,0.26360541,660.58,659.86,1.14343505]
[1751316149841,0.26360541,660.58,659.84,2.733]
[1751316150041,0.26360541,660.58,659.85,1.14343496]
[1751316150243,0.26360541,660.58,659.86,1.14343496]
[1751316150445,0.26360541,660.58,659.83,1.996]
[1751316150645,0.26360541,660.58,659.84,1.1434575]
[1751316150844,0.26360541,660.58,659.85,1.1434575]
[1751316151043,0.26360541,660.58,659.86,1.1434575]
[1751316151242,0.26360541,660.58,659.83,1.996]
[1751316151443,0.26360541,660.58,659.84,1.14348317]
[1751316151743,0.26360541,660.58,659.85,1.14348317]
[1751316151942,0.26360541,660.58,659.86,1.14348317]
[1751316152140,0.26360541,660.58,659.83,1.996]
[1751316152341,0.26360541,660.58,659.84,1.14345376]
[1751316152644,0.26360541,660.58,659.85,1.14345376]
[1751316152846,0.26360541,660.58,659.86,1.14345376]
[1751316153044,0.26360541,660.58,659.83,1.996]
[1751316153244,0.26360541,660.58,659.84,1.14345824]
[1751316153443,0.26360541,660.58,659.85,1.14345824]
[1751316153648,0.26360541,660.58,659.86,1.14345824]
[1751316153850,0.26360541,660.58,659.85,2.517]
[1751316154150,0.26360541,660.58,659.86,1.14345902]
[1751316154350,0.26360541,660.58,659.85,2.517]
[1751316154561,0.26360541,660.58,659.86,1.14346477]
[1751316154848,0.26360541,660.58,659.85,2.517]
[1751316155049,0.26360541,660.58,659.86,1.14346477]
[1751316155254,0.26360541,660.58,659.85,2.517]
[1751316155446,0.26360541,660.58,659.86,1.14344596]
[1751316155650,0.26360541,660.58,659.85,2.517]
[1751316155851,0.26360541,660.58,659.86,1.14342071]
[1751316156051,0.26360541,660.58,659.85,2.517]
[1751316156248,0.26360541,660.58,659.86,1.14327469]
[1751316156547,0.26360541,660.58,659.85,2.517]
[1751316156752,0.26360541,660.58,659.86,1.1432755]
[1751316156949,0.26360541,660.58,659.85,2.517]
[1751316157148,0.26360541,660.58,659.86,1.1432755]
[1751316157348,0.26360541,660.58,659.85,2.517]
[1751316157548,0.26360541,660.58,659.86,1.14328548]
[1751316157751,0.26360541,660.58,659.85,2.517]
[1751316158047,0.26360541,660.58,659.86,1.14328548]
[1751316158251,0.26360541,660.58,659.85,2.517]
[1751316158452,0.26360541,660.58,659.86,1.14329674]
[1751316158649,0.26360541,660.58,659.85,2.517]
[1751316158852,0.26360541,660.58,659.86,1.14329674]
[1751316159149,0.26360541,660.58,659.87,1.14330891]
[1751316159349,0.26360541,660.58,659.88,1.14330891]
[1751316159548,0.26360541,660.58,659.85,2.517]
[1751316159549,0.26360541,660.58,659.89,1.14330891]